[Event "Titled Tuesday Blitz August 10 2021"]
[White "Dang, Hoang Son"]
[Black "Sarana, Alexey"]
[WhiteFideId "12402435"]
[BlackFideId "24133795"]
[WhiteElo "2248"]
[BlackElo "2646"]
[Result "0-1"]
[Round "03"]
[TimeControl "180+1"]
[Date "2021.08.10"]
[WhiteClock "0:00:38"]
[BlackClock "0:01:05"]

1. d4 {[%clk 0:03:00]}  Nf6 {[%clk 0:02:59]} 2. c4 {[%clk 0:02:59]}  e6 {[%clk 0:02:59]} 3. Nf3 {[%clk 0:02:59]}  d5 {[%clk 0:03:00]} 4. g3 {[%clk 0:02:59]}  Be7 {[%clk 0:02:57]} 5. Bg2 {[%clk 0:02:59]}  O-O {[%clk 0:02:57]} 6. O-O {[%clk 0:03:00]}  dxc4 {[%clk 0:02:57]} 7. Qc2 {[%clk 0:03:00]}  a6 {[%clk 0:02:57]} 8. Qxc4 {[%clk 0:03:00]}  b5 {[%clk 0:02:57]} 9. Qc2 {[%clk 0:03:01]}  Bb7 {[%clk 0:02:58]} 10. Bd2 {[%clk 0:02:59]}  Be4 {[%clk 0:02:58]} 11. Qc1 {[%clk 0:02:59]}  Bb7 {[%clk 0:02:58]} 12. Qc2 {[%clk 0:02:57]}  Be4 {[%clk 0:02:58]} 13. Qc1 {[%clk 0:02:57]}  Nbd7 {[%clk 0:02:59]} 14. Ba5 {[%clk 0:02:53]}  Ra7 {[%clk 0:02:56]} 15. Nbd2 {[%clk 0:02:49]}  Bd5 {[%clk 0:02:54]} 16. Qc2 {[%clk 0:02:38]}  Qa8 {[%clk 0:02:54]} 17. b4 {[%clk 0:02:20]}  Ne4 {[%clk 0:02:48]} 18. Nb3 {[%clk 0:02:10]}  Nb6 {[%clk 0:02:46]} 19. Ne5 {[%clk 0:02:01]}  Nc4 {[%clk 0:02:42]} 20. f3 {[%clk 0:01:42]}  Ned6 {[%clk 0:02:26]} 21. e4 {[%clk 0:01:35]}  Nxe5 {[%clk 0:02:17]} 22. exd5 {[%clk 0:01:21]}  Nec4 {[%clk 0:02:16]} 23. dxe6 {[%clk 0:01:21]}  Ne3 {[%clk 0:02:16]} 24. exf7+ {[%clk 0:01:18]}  Rxf7 {[%clk 0:02:17]} 25. Qe2 {[%clk 0:01:05]}  Nxf1 {[%clk 0:02:16]} 26. f4 {[%clk 0:01:03]}  c6 {[%clk 0:02:10]} 27. Rxf1 {[%clk 0:01:01]}  Nc4 {[%clk 0:02:10]} 28. Qe6 {[%clk 0:00:57]}  Nxa5 {[%clk 0:01:46]} 29. Nxa5 {[%clk 0:00:57]}  Bxb4 {[%clk 0:01:33]} 30. Nxc6 {[%clk 0:00:57]}  Bc3 {[%clk 0:01:26]} 31. Bd5 {[%clk 0:00:51]}  Rc7 {[%clk 0:01:12]} 32. Ne5 {[%clk 0:00:45]}  Bxd4+ {[%clk 0:01:09]} 33. Kh1 {[%clk 0:00:45]}  Qf8 {[%clk 0:01:05]} 34. Nxf7 {[%clk 0:00:45]}  Qxf7 {[%clk 0:01:06]} 35. Qe7 {[%clk 0:00:44]}  Rxe7 {[%clk 0:01:05]} 36. Bxf7+ {[%clk 0:00:42]}  Kxf7 {[%clk 0:01:06]} 37. Kg2 {[%clk 0:00:40]}  Re2+ {[%clk 0:01:05]} 38. Kf3 {[%clk 0:00:40]}  Rxa2 {[%clk 0:01:06]} 39. Rd1 {[%clk 0:00:40]}  Bf6 {[%clk 0:01:06]} 40. h4 {[%clk 0:00:40]}  h5 {[%clk 0:01:05]} 41. Rd5 {[%clk 0:00:38]}  b4 {[%clk 0:01:05]} 0-1


[Site "https://www.chess.com"]

[Event "Titled Tuesday Blitz August 10 2021"]
[White "Grischuk, Alexander"]
[Black "Ivanisevic, Ivan"]
[WhiteFideId "4126025"]
[BlackFideId "912417"]
[WhiteElo "2777"]
[BlackElo "2499"]
[Result "1/2-1/2"]
[Round "03"]
[TimeControl "180+1"]
[Date "2021.08.10"]
[WhiteClock "0:00:06"]
[BlackClock "0:00:15"]

1. e4 {[%clk 0:03:00]}  e5 {[%clk 0:02:59]} 2. Nf3 {[%clk 0:03:00]}  Nc6 {[%clk 0:03:00]} 3. Bc4 {[%clk 0:02:59]}  Nf6 {[%clk 0:02:58]} 4. d3 {[%clk 0:03:00]}  Be7 {[%clk 0:02:58]} 5. O-O {[%clk 0:02:58]}  O-O {[%clk 0:02:59]} 6. Re1 {[%clk 0:02:57]}  d6 {[%clk 0:02:59]} 7. a4 {[%clk 0:02:57]}  Kh8 {[%clk 0:02:58]} 8. a5 {[%clk 0:02:54]}  a6 {[%clk 0:02:57]} 9. Nc3 {[%clk 0:02:52]}  Ng8 {[%clk 0:02:53]} 10. Nd5 {[%clk 0:02:49]}  f5 {[%clk 0:02:52]} 11. c3 {[%clk 0:02:49]}  f4 {[%clk 0:02:51]} 12. d4 {[%clk 0:02:42]}  g5 {[%clk 0:02:50]} 13. h3 {[%clk 0:02:39]}  g4 {[%clk 0:02:48]} 14. hxg4 {[%clk 0:02:39]}  Bxg4 {[%clk 0:02:49]} 15. Be2 {[%clk 0:02:39]}  Nh6 {[%clk 0:02:28]} 16. Qd3 {[%clk 0:01:57]}  Rg8 {[%clk 0:02:25]} 17. Kf1 {[%clk 0:01:57]}  Bh4 {[%clk 0:02:17]} 18. Rd1 {[%clk 0:01:54]}  Nf7 {[%clk 0:02:14]} 19. Ke1 {[%clk 0:01:50]}  Rg6 {[%clk 0:01:58]} 20. Ra4 {[%clk 0:01:36]}  Bf6 {[%clk 0:01:24]} 21. b3 {[%clk 0:01:30]}  Bd7 {[%clk 0:01:18]} 22. Bf1 {[%clk 0:01:27]}  Ng5 {[%clk 0:01:07]} 23. Nxg5 {[%clk 0:01:16]}  Bxg5 {[%clk 0:01:06]} 24. Be2 {[%clk 0:01:14]}  Bh6 {[%clk 0:01:05]} 25. Bf3 {[%clk 0:01:14]}  Bg7 {[%clk 0:01:04]} 26. Bb2 {[%clk 0:00:51]}  Rc8 {[%clk 0:01:02]} 27. Rd2 {[%clk 0:00:49]}  Qh4 {[%clk 0:01:01]} 28. Kd1 {[%clk 0:00:49]}  Bg4 {[%clk 0:00:39]} 29. Kc2 {[%clk 0:00:47]}  Bxf3 {[%clk 0:00:39]} 30. Qxf3 {[%clk 0:00:43]}  Qg4 {[%clk 0:00:39]} 31. Qxg4 {[%clk 0:00:42]}  Rxg4 {[%clk 0:00:39]} 32. f3 {[%clk 0:00:42]}  Rg6 {[%clk 0:00:39]} 33. Nb4 {[%clk 0:00:41]}  Na7 {[%clk 0:00:36]} 34. dxe5 {[%clk 0:00:35]}  dxe5 {[%clk 0:00:36]} 35. c4 {[%clk 0:00:35]}  Rd6 {[%clk 0:00:31]} 36. Rxd6 {[%clk 0:00:29]}  cxd6 {[%clk 0:00:32]} 37. Ra1 {[%clk 0:00:29]}  Rg8 {[%clk 0:00:30]} 38. Rd1 {[%clk 0:00:28]}  Bf8 {[%clk 0:00:26]} 39. Rd2 {[%clk 0:00:28]}  Rg6 {[%clk 0:00:22]} 40. Bc3 {[%clk 0:00:23]}  Kg8 {[%clk 0:00:22]} 41. Nd5 {[%clk 0:00:22]}  Nc6 {[%clk 0:00:21]} 42. b4 {[%clk 0:00:22]}  h5 {[%clk 0:00:19]} 43. b5 {[%clk 0:00:22]}  Nd8 {[%clk 0:00:19]} 44. Nc7 {[%clk 0:00:12]}  Kf7 {[%clk 0:00:16]} 45. Kb3 {[%clk 0:00:12]}  Ne6 {[%clk 0:00:15]} 46. Nxe6 {[%clk 0:00:06]}  Kxe6 {[%clk 0:00:16]} 47. Bb4 {[%clk 0:00:07]}  Be7 {[%clk 0:00:17]} 48. Kc3 {[%clk 0:00:05]}  Rg8 {[%clk 0:00:17]} 49. Kd3 {[%clk 0:00:05]}  h4 {[%clk 0:00:17]} 50. Rb2 {[%clk 0:00:05]}  Rc8 {[%clk 0:00:16]} 51. Bd2 {[%clk 0:00:04]}  Rg8 {[%clk 0:00:16]} 52. Be1 {[%clk 0:00:05]}  Rg7 {[%clk 0:00:15]} 53. Bc3 {[%clk 0:00:04]}  Rg8 {[%clk 0:00:15]} 54. Be1 {[%clk 0:00:04]}  Rg7 {[%clk 0:00:14]} 55. Re2 {[%clk 0:00:04]}  Rg8 {[%clk 0:00:14]} 56. Bd2 {[%clk 0:00:05]}  Rg7 {[%clk 0:00:14]} 57. Be1 {[%clk 0:00:05]}  Rg8 {[%clk 0:00:14]} 58. Bd2 {[%clk 0:00:05]}  Rg7 {[%clk 0:00:15]} 59. Be1 {[%clk 0:00:06]} 1/2-1/2


[Site "https://www.chess.com"]

[Event "Titled Tuesday Blitz August 10 2021"]
[White "Khanin, Semen"]
[Black "Moussard, Jules"]
[WhiteFideId "4111990"]
[BlackFideId "642908"]
[WhiteElo "2521"]
[BlackElo "2644"]
[Result "1-0"]
[Round "03"]
[TimeControl "180+1"]
[Date "2021.08.10"]
[WhiteClock "0:00:17"]
[BlackClock "0:00:08"]

1. e4 {[%clk 0:03:00]}  g6 {[%clk 0:02:58]} 2. d4 {[%clk 0:03:00]}  Bg7 {[%clk 0:02:59]} 3. Nf3 {[%clk 0:03:01]}  d6 {[%clk 0:02:59]} 4. Be3 {[%clk 0:03:01]}  Nf6 {[%clk 0:02:58]} 5. Nc3 {[%clk 0:03:01]}  a6 {[%clk 0:02:54]} 6. Qd2 {[%clk 0:03:00]}  b5 {[%clk 0:02:54]} 7. Bh6 {[%clk 0:02:58]}  O-O {[%clk 0:02:25]} 8. Bd3 {[%clk 0:02:53]}  Bg4 {[%clk 0:02:21]} 9. h4 {[%clk 0:02:46]}  Nc6 {[%clk 0:02:20]} 10. h5 {[%clk 0:02:44]}  Nxh5 {[%clk 0:02:17]} 11. Bxg7 {[%clk 0:02:39]}  Kxg7 {[%clk 0:02:18]} 12. Nh2 {[%clk 0:02:37]}  Bd7 {[%clk 0:02:11]} 13. g4 {[%clk 0:02:37]}  Nf6 {[%clk 0:02:11]} 14. Nf1 {[%clk 0:02:23]}  Nxd4 {[%clk 0:01:56]} 15. Qh6+ {[%clk 0:02:23]}  Kg8 {[%clk 0:01:52]} 16. Nd5 {[%clk 0:02:20]}  Nf3+ {[%clk 0:01:29]} 17. Kd1 {[%clk 0:02:09]}  Re8 {[%clk 0:01:27]} 18. Nfe3 {[%clk 0:02:01]}  c6 {[%clk 0:01:23]} 19. Nxf6+ {[%clk 0:01:59]}  exf6 {[%clk 0:01:24]} 20. Nf5 {[%clk 0:01:27]}  Bxf5 {[%clk 0:01:19]} 21. gxf5 {[%clk 0:01:27]}  g5 {[%clk 0:00:59]} 22. Qxh7+ {[%clk 0:01:11]}  Kf8 {[%clk 0:00:59]} 23. Rh6 {[%clk 0:01:09]}  Ke7 {[%clk 0:00:31]} 24. Qg7 {[%clk 0:01:05]}  Ne5 {[%clk 0:00:31]} 25. Qxf6+ {[%clk 0:01:04]}  Kd7 {[%clk 0:00:32]} 26. Qxd6+ {[%clk 0:01:05]}  Kc8 {[%clk 0:00:32]} 27. Qxd8+ {[%clk 0:00:40]}  Kxd8 {[%clk 0:00:33]} 28. Ke2 {[%clk 0:00:37]}  Ke7 {[%clk 0:00:33]} 29. Rg1 {[%clk 0:00:31]}  Rg8 {[%clk 0:00:30]} 30. Ke3 {[%clk 0:00:25]}  c5 {[%clk 0:00:29]} 31. Be2 {[%clk 0:00:25]}  Nd7 {[%clk 0:00:19]} 32. Rd1 {[%clk 0:00:23]}  Rh8 {[%clk 0:00:16]} 33. Rhd6 {[%clk 0:00:23]}  Rh3+ {[%clk 0:00:16]} 34. f3 {[%clk 0:00:21]}  Nf6 {[%clk 0:00:15]} 35. Bf1 {[%clk 0:00:17]}  Ng4+ {[%clk 0:00:11]} 36. Ke2 {[%clk 0:00:17]}  Rh2+ {[%clk 0:00:11]} 37. Ke1 {[%clk 0:00:18]}  Ne5 {[%clk 0:00:11]} 38. Be2 {[%clk 0:00:17]}  Rh1+ {[%clk 0:00:11]} 39. Kf2 {[%clk 0:00:17]}  Rh2+ {[%clk 0:00:11]} 40. Ke3 {[%clk 0:00:16]}  Rah8 {[%clk 0:00:10]} 41. f6+ {[%clk 0:00:16]}  Kf8 {[%clk 0:00:08]} 42. Rd8# {[%clk 0:00:17]} 1-0


[Site "https://www.chess.com"]

[Event "Titled Tuesday Blitz August 10 2021"]
[White "Khoroshev, Nikita"]
[Black "Salinas Herrera, Pablo"]
[WhiteFideId "14200287"]
[BlackFideId "3407128"]
[WhiteElo "2328"]
[BlackElo "2541"]
[Result "0-1"]
[Round "03"]
[TimeControl "180+1"]
[Date "2021.08.10"]
[WhiteClock "0:02:12"]
[BlackClock "0:02:08"]

1. d4 {[%clk 0:03:00]}  d5 {[%clk 0:02:44]} 2. c4 {[%clk 0:02:58]}  e6 {[%clk 0:02:44]} 3. Nf3 {[%clk 0:02:58]}  a6 {[%clk 0:02:44]} 4. e3 {[%clk 0:02:57]}  dxc4 {[%clk 0:02:44]} 5. Bxc4 {[%clk 0:02:58]}  b5 {[%clk 0:02:44]} 6. Bb3 {[%clk 0:02:57]}  Bb7 {[%clk 0:02:44]} 7. a4 {[%clk 0:02:56]}  Nf6 {[%clk 0:02:39]} 8. O-O {[%clk 0:02:53]}  Nbd7 {[%clk 0:02:39]} 9. axb5 {[%clk 0:02:50]}  axb5 {[%clk 0:02:40]} 10. Rxa8 {[%clk 0:02:50]}  Qxa8 {[%clk 0:02:41]} 11. Nc3 {[%clk 0:02:50]}  b4 {[%clk 0:02:40]} 12. Na4 {[%clk 0:02:48]}  Bd6 {[%clk 0:02:40]} 13. h3 {[%clk 0:02:46]}  O-O {[%clk 0:02:40]} 14. Bd2 {[%clk 0:02:46]}  Ne4 {[%clk 0:02:37]} 15. Be1 {[%clk 0:02:38]}  Ba6 {[%clk 0:02:37]} 16. Nd2 {[%clk 0:02:35]}  Nxd2 {[%clk 0:02:36]} 17. Bxd2 {[%clk 0:02:35]}  Bxf1 {[%clk 0:02:36]} 18. Qxf1 {[%clk 0:02:36]}  Qb7 {[%clk 0:02:29]} 19. Qc1 {[%clk 0:02:29]}  Qb5 {[%clk 0:02:27]} 20. Be1 {[%clk 0:02:26]}  Ra8 {[%clk 0:02:26]} 21. Qc2 {[%clk 0:02:26]}  h6 {[%clk 0:02:20]} 22. g3 {[%clk 0:02:23]}  Nb6 {[%clk 0:02:14]} 23. Nxb6 {[%clk 0:02:22]}  Qxb6 {[%clk 0:02:13]} 24. Qe4 {[%clk 0:02:21]}  Ra1 {[%clk 0:02:10]} 25. Kg2 {[%clk 0:02:12]}  Rxe1 {[%clk 0:02:08]} 26. Qa8+ {[%clk 0:02:12]}  Bf8 {[%clk 0:02:08]} 0-1


[Site "https://www.chess.com"]

[Event "Titled Tuesday Blitz August 10 2021"]
[White "Korchmar, Vasiliy"]
[Black "Kovalev, Vladislav"]
[WhiteFideId "24131750"]
[BlackFideId "13504398"]
[WhiteElo "2370"]
[BlackElo "2573"]
[Result "1-0"]
[Round "03"]
[TimeControl "180+1"]
[Date "2021.08.10"]
[WhiteClock "0:00:02"]
[BlackClock "0:00:04"]

1. e4 {[%clk 0:03:00]}  e5 {[%clk 0:02:59]} 2. Nf3 {[%clk 0:03:00]}  Nc6 {[%clk 0:02:59]} 3. Nc3 {[%clk 0:03:01]}  Nf6 {[%clk 0:02:58]} 4. Bb5 {[%clk 0:03:01]}  Bc5 {[%clk 0:02:58]} 5. d3 {[%clk 0:02:49]}  O-O {[%clk 0:02:55]} 6. O-O {[%clk 0:02:45]}  Re8 {[%clk 0:02:54]} 7. h3 {[%clk 0:02:38]}  Nd4 {[%clk 0:02:46]} 8. Ba4 {[%clk 0:02:29]}  c6 {[%clk 0:02:40]} 9. Nxd4 {[%clk 0:02:27]}  exd4 {[%clk 0:02:12]} 10. Ne2 {[%clk 0:02:27]}  d5 {[%clk 0:02:12]} 11. exd5 {[%clk 0:01:44]}  Nxd5 {[%clk 0:02:13]} 12. Ng3 {[%clk 0:01:43]}  Be6 {[%clk 0:01:10]} 13. Bb3 {[%clk 0:01:43]}  Bd6 {[%clk 0:00:58]} 14. Ne4 {[%clk 0:01:40]}  Bc7 {[%clk 0:00:55]} 15. Qf3 {[%clk 0:01:33]}  h6 {[%clk 0:00:36]} 16. Bd2 {[%clk 0:01:33]}  Qh4 {[%clk 0:00:31]} 17. Rfe1 {[%clk 0:01:18]}  Rad8 {[%clk 0:00:12]} 18. Re2 {[%clk 0:01:13]}  Nf4 {[%clk 0:00:08]} 19. Bxf4 {[%clk 0:01:11]}  Qxf4 {[%clk 0:00:09]} 20. Qxf4 {[%clk 0:01:11]}  Bxf4 {[%clk 0:00:10]} 21. Rae1 {[%clk 0:01:09]}  Kf8 {[%clk 0:00:04]} 22. Nc5 {[%clk 0:01:07]}  Bc8 {[%clk 0:00:03]} 23. Ne4 {[%clk 0:00:44]}  Bc7 {[%clk 0:00:03]} 24. Nd2 {[%clk 0:00:37]}  Ba5 {[%clk 0:00:02]} 25. Kf1 {[%clk 0:00:30]}  Rxe2 {[%clk 0:00:02]} 26. Rxe2 {[%clk 0:00:30]}  Re8 {[%clk 0:00:03]} 27. Nf3 {[%clk 0:00:22]}  Bb6 {[%clk 0:00:03]} 28. Ne5 {[%clk 0:00:21]}  Re7 {[%clk 0:00:02]} 29. Nc4 {[%clk 0:00:09]}  Rxe2 {[%clk 0:00:01]} 30. Kxe2 {[%clk 0:00:09]}  Bc7 {[%clk 0:00:02]} 31. Nd2 {[%clk 0:00:08]}  Ke7 {[%clk 0:00:02]} 32. Nf3 {[%clk 0:00:08]}  Bb6 {[%clk 0:00:03]} 33. Ne5 {[%clk 0:00:07]}  f6 {[%clk 0:00:03]} 34. Ng6+ {[%clk 0:00:06]}  Kd6 {[%clk 0:00:04]} 35. Nf4 {[%clk 0:00:07]}  Bc7 {[%clk 0:00:03]} 36. Nh5 {[%clk 0:00:07]}  g5 {[%clk 0:00:03]} 37. Nxf6 {[%clk 0:00:07]}  Ke5 {[%clk 0:00:03]} 38. Ne4 {[%clk 0:00:03]}  Bf5 {[%clk 0:00:03]} 39. Nd2 {[%clk 0:00:03]}  b5 {[%clk 0:00:03]} 40. Nf3+ {[%clk 0:00:03]}  Kd6 {[%clk 0:00:02]} 41. Nxd4 {[%clk 0:00:04]}  Bd7 {[%clk 0:00:03]} 42. g4 {[%clk 0:00:03]}  c5 {[%clk 0:00:04]} 43. Nf3 {[%clk 0:00:03]}  a5 {[%clk 0:00:03]} 44. Bf7 {[%clk 0:00:03]}  a4 {[%clk 0:00:03]} 45. Bg6 {[%clk 0:00:03]}  b4 {[%clk 0:00:03]} 46. b3 {[%clk 0:00:03]}  Bc6 {[%clk 0:00:04]} 47. Be4 {[%clk 0:00:03]}  axb3 {[%clk 0:00:04]} 48. axb3 {[%clk 0:00:03]}  Bd7 {[%clk 0:00:05]} 49. Nd2 {[%clk 0:00:03]}  Ke7 {[%clk 0:00:05]} 50. Nc4 {[%clk 0:00:03]}  Be6 {[%clk 0:00:06]} 51. Ne3 {[%clk 0:00:03]}  Be5 {[%clk 0:00:06]} 52. Bd5 {[%clk 0:00:03]}  Bd7 {[%clk 0:00:06]} 53. Nc4 {[%clk 0:00:04]}  Bc7 {[%clk 0:00:06]} 54. Ne3 {[%clk 0:00:04]}  Kf6 {[%clk 0:00:06]} 55. Nc4 {[%clk 0:00:03]}  Bf4 {[%clk 0:00:04]} 56. Kf3 {[%clk 0:00:02]}  Bb5 {[%clk 0:00:04]} 57. Ne3 {[%clk 0:00:01]}  Ke5 {[%clk 0:00:04]} 58. Bc4 {[%clk 0:00:02]}  Bc6+ {[%clk 0:00:04]} 59. Ke2 {[%clk 0:00:02]}  Kd4 {[%clk 0:00:03]} 60. Nf5+ {[%clk 0:00:02]}  Kc3 {[%clk 0:00:04]} 61. Nxh6 {[%clk 0:00:03]}  Kxc2 {[%clk 0:00:04]} 62. Nf5 {[%clk 0:00:03]}  Bd7 {[%clk 0:00:03]} 63. Ne3+ {[%clk 0:00:02]}  Kb2 {[%clk 0:00:03]} 64. Nd5 {[%clk 0:00:03]}  Be5 {[%clk 0:00:03]} 65. f4 {[%clk 0:00:02]}  gxf4 {[%clk 0:00:04]} 66. Kf3 {[%clk 0:00:02]}  Bc6 {[%clk 0:00:04]} 67. Ke4 {[%clk 0:00:02]}  Bd6 {[%clk 0:00:05]} 68. Kf3 {[%clk 0:00:02]}  Kc2 {[%clk 0:00:05]} 69. g5 {[%clk 0:00:02]}  Kd2 {[%clk 0:00:05]} 70. g6 {[%clk 0:00:02]}  Be5 {[%clk 0:00:06]} 71. h4 {[%clk 0:00:02]}  Be8 {[%clk 0:00:03]} 72. h5 {[%clk 0:00:03]}  Bd6 {[%clk 0:00:03]} 73. g7 {[%clk 0:00:02]}  Bf7 {[%clk 0:00:04]} 74. Nf6 {[%clk 0:00:02]} 1-0


[Site "https://www.chess.com"]

[Event "Titled Tuesday Blitz August 10 2021"]
[White "Lashkin, Jegor"]
[Black "Gusarov, Grigory"]
[WhiteFideId "13907808"]
[BlackFideId "24102172"]
[WhiteElo "2293"]
[BlackElo "2247"]
[Result "1-0"]
[Round "03"]
[TimeControl "180+1"]
[Date "2021.08.10"]
[WhiteClock "0:00:25"]
[BlackClock "0:00:28"]

1. d4 {[%clk 0:03:00]}  Nf6 {[%clk 0:02:57]} 2. c4 {[%clk 0:03:00]}  g6 {[%clk 0:02:56]} 3. Nc3 {[%clk 0:03:00]}  d5 {[%clk 0:02:56]} 4. Nf3 {[%clk 0:02:57]}  Bg7 {[%clk 0:02:56]} 5. Bg5 {[%clk 0:02:54]}  Ne4 {[%clk 0:02:56]} 6. Bf4 {[%clk 0:02:52]}  Nxc3 {[%clk 0:02:54]} 7. bxc3 {[%clk 0:02:52]}  c6 {[%clk 0:02:49]} 8. e3 {[%clk 0:02:52]}  O-O {[%clk 0:02:49]} 9. Bd3 {[%clk 0:02:43]}  Qa5 {[%clk 0:02:32]} 10. Qb3 {[%clk 0:02:39]}  Nd7 {[%clk 0:02:24]} 11. cxd5 {[%clk 0:02:31]}  cxd5 {[%clk 0:02:20]} 12. O-O {[%clk 0:02:31]}  Nf6 {[%clk 0:02:16]} 13. c4 {[%clk 0:02:29]}  dxc4 {[%clk 0:02:11]} 14. Bxc4 {[%clk 0:02:30]}  Qh5 {[%clk 0:02:11]} 15. Ne5 {[%clk 0:02:27]}  e6 {[%clk 0:02:04]} 16. h3 {[%clk 0:02:21]}  g5 {[%clk 0:01:58]} 17. Bh2 {[%clk 0:02:17]}  Ne4 {[%clk 0:01:48]} 18. Qc2 {[%clk 0:02:11]}  f5 {[%clk 0:01:25]} 19. Be2 {[%clk 0:01:56]}  Qe8 {[%clk 0:01:24]} 20. Rfc1 {[%clk 0:01:48]}  Bd7 {[%clk 0:01:18]} 21. Bf3 {[%clk 0:01:44]}  Rc8 {[%clk 0:00:57]} 22. Qb2 {[%clk 0:01:36]}  Bc6 {[%clk 0:00:57]} 23. Nxc6 {[%clk 0:01:33]}  bxc6 {[%clk 0:00:56]} 24. Bxe4 {[%clk 0:01:28]}  fxe4 {[%clk 0:00:57]} 25. Rc5 {[%clk 0:01:22]}  Rf5 {[%clk 0:00:56]} 26. Rac1 {[%clk 0:01:21]}  Rd5 {[%clk 0:00:55]} 27. Qc2 {[%clk 0:01:18]}  Rxc5 {[%clk 0:00:52]} 28. Qxc5 {[%clk 0:01:19]}  h6 {[%clk 0:00:52]} 29. Qc2 {[%clk 0:01:06]}  Qg6 {[%clk 0:00:51]} 30. Qa4 {[%clk 0:01:06]}  g4 {[%clk 0:00:38]} 31. h4 {[%clk 0:00:55]}  Qf7 {[%clk 0:00:29]} 32. Rxc6 {[%clk 0:00:40]}  Qd7 {[%clk 0:00:30]} 33. Rxc8+ {[%clk 0:00:38]}  Qxc8 {[%clk 0:00:30]} 34. Bg3 {[%clk 0:00:32]}  Qc1+ {[%clk 0:00:30]} 35. Kh2 {[%clk 0:00:33]}  Qb2 {[%clk 0:00:29]} 36. Qe8+ {[%clk 0:00:31]}  Kh7 {[%clk 0:00:29]} 37. Qxe6 {[%clk 0:00:31]}  Qc2 {[%clk 0:00:28]} 38. Qxg4 {[%clk 0:00:27]}  Qxa2 {[%clk 0:00:28]} 39. Qxe4+ {[%clk 0:00:27]}  Kh8 {[%clk 0:00:29]} 40. d5 {[%clk 0:00:25]}  Qd2 {[%clk 0:00:28]} 41. d6 {[%clk 0:00:24]}  a5 {[%clk 0:00:28]} 42. Qe8+ {[%clk 0:00:24]}  Kh7 {[%clk 0:00:28]} 43. d7 {[%clk 0:00:24]}  a4 {[%clk 0:00:27]} 44. d8=Q {[%clk 0:00:24]}  Qxd8 {[%clk 0:00:27]} 45. Qxd8 {[%clk 0:00:25]}  a3 {[%clk 0:00:28]} 46. Qd3+ {[%clk 0:00:25]} 1-0


[Site "https://www.chess.com"]

[Event "Titled Tuesday Blitz August 10 2021"]
[White "Le, Tuan Minh"]
[Black "Fawzy, Adham"]
[WhiteFideId "12401153"]
[BlackFideId "10613129"]
[WhiteElo "2450"]
[BlackElo "2480"]
[Result "1-0"]
[Round "03"]
[TimeControl "180+1"]
[Date "2021.08.10"]
[WhiteClock "0:00:38"]
[BlackClock "0:00:08"]

1. d4 {[%clk 0:03:00]}  Nf6 {[%clk 0:02:58]} 2. Nf3 {[%clk 0:03:01]}  e6 {[%clk 0:02:57]} 3. Bf4 {[%clk 0:03:00]}  c5 {[%clk 0:02:57]} 4. c3 {[%clk 0:02:46]}  Nc6 {[%clk 0:02:57]} 5. e3 {[%clk 0:02:36]}  d5 {[%clk 0:02:56]} 6. Nbd2 {[%clk 0:02:23]}  Bd6 {[%clk 0:02:56]} 7. Bg3 {[%clk 0:02:22]}  O-O {[%clk 0:02:52]} 8. Bb5 {[%clk 0:02:23]}  Ne7 {[%clk 0:02:35]} 9. Bd3 {[%clk 0:02:22]}  Qc7 {[%clk 0:02:18]} 10. Bxd6 {[%clk 0:02:21]}  Qxd6 {[%clk 0:02:18]} 11. Ne5 {[%clk 0:02:21]}  Nd7 {[%clk 0:02:13]} 12. f4 {[%clk 0:02:20]}  f6 {[%clk 0:01:48]} 13. Qh5 {[%clk 0:01:24]}  Nf5 {[%clk 0:01:10]} 14. Nxd7 {[%clk 0:00:53]}  Bxd7 {[%clk 0:01:08]} 15. O-O {[%clk 0:00:53]}  g6 {[%clk 0:00:46]} 16. Qe2 {[%clk 0:00:53]}  Bc6 {[%clk 0:00:18]} 17. Nf3 {[%clk 0:00:38]}  Rae8 {[%clk 0:00:12]} 18. Rae1 {[%clk 0:00:37]}  Kh8 {[%clk 0:00:09]} 19. Qf2 {[%clk 0:00:38]}  b6 {[%clk 0:00:09]} 20. g4 {[%clk 0:00:38]}  Ng7 {[%clk 0:00:08]} 21. Qh4 {[%clk 0:00:38]}  Qe7 {[%clk 0:00:08]} 22. Bxg6 {[%clk 0:00:38]} 1-0


[Site "https://www.chess.com"]